fUSD/lending_fUSD_20240213
["ID","MTS","AMOUNT","RATE_DAILY","PERIOD"]
[313934476,1707838261904,-500.0,0.00029041,2]
[313934477,1707838261914,-500.0,0.00029041,2]
[313934478,1707838261925,-500.0,0.00029041,2]
[313934479,1707838261934,-500.0,0.00029041,2]
[313934480,1707838261943,-500.0,0.00029041,2]
[313934481,1707838261952,-544.46765073,0.00029041,2]
[313934482,1707838261962,-500.0,0.00029041,2]
[313934483,1707838261972,-500.0,0.00029041,2]
[313934484,1707838261982,-500.0,0.00029041,2]
[313934485,1707838261992,-506.78,0.00029041,2]
[313934486,1707838262002,-500.0,0.00029041,2]
[313934487,1707838262013,-430.83848224,0.00029041,2]
[313934488,1707838262023,-500.0,0.00029041,2]
[313934489,1707838262034,-500.0,0.00029041,2]
[313934490,1707838262043,-500.0,0.00029041,2]
[313934491,1707838262053,-500.0,0.00029041,2]
[313934492,1707838262063,-500.0,0.00029041,2]
[313934493,1707838262074,-574.55928272,0.00029041,2]
[313934494,1707838262084,-529.52,0.00029041,2]
[313934495,1707838262094,-500.0,0.00029041,2]
[313934496,1707838262104,-500.0,0.00029041,2]
[313934497,1707838262114,-500.0,0.00029041,2]
[313934498,1707838262123,-500.0,0.00029041,2]
[313934499,1707838262133,-171.20318724,0.00029041,2]
[313934500,1707838262154,-168.13804497,0.00029041,2]
[313934501,1707838262175,-500.0,0.00029041,2]
[313934502,1707838262193,-500.0,0.00029041,2]
[313934503,1707838262214,-500.0,0.00029041,2]
[313934504,1707838262231,-500.0,0.00029041,2]
[313934505,1707838262250,-500.0,0.00029041,2]
[313934506,1707838262268,-500.0,0.00029041,2]
[313934507,1707838262286,-500.0,0.00029041,2]
[313934508,1707838262304,-500.0,0.00029041,2]
[313934509,1707838262322,-500.0,0.00029041,2]
[313934510,1707838262344,-500.0,0.00029041,2]
[313934511,1707838262361,-231.83,0.00029041,2]
[313934512,1707838262374,-500.0,0.00029041,2]
[313934513,1707838262391,-500.0,0.00029041,2]
[313934514,1707838262406,-500.0,0.00029041,2]
[313934515,1707838262419,-198.24,0.00029041,2]
[313934516,1707838262436,-500.0,0.00029041,2]
[313934517,1707838262455,-500.0,0.00029041,2]
[313934518,1707838262469,-500.0,0.00029041,2]
[313934519,1707838262483,-500.0,0.00029041,2]
[313934520,1707838262498,-500.0,0.00029041,2]
[313934521,1707838262515,-500.0,0.00029041,2]
[313934522,1707838262528,-500.0,0.00029041,2]
[313934523,1707838262542,-620.11,0.00029041,2]
[313934524,1707838262558,-500.0,0.00029041,2]
[313934525,1707838262571,-596.12,0.00029041,2]
[313934526,1707838262585,-456.69,0.00029041,2]
[313934527,1707838262599,-166.12,0.00029041,2]
[313934528,1707838262613,-500.0,0.00029041,2]
[313934529,1707838262627,-377.68,0.00029041,2]
[313934530,1707838262642,-500.0,0.00029041,2]
[313934531,1707838262655,-500.0,0.00029041,2]
[313934532,1707838262670,-500.0,0.00029041,2]
[313934533,1707838262684,-781.4,0.00029041,2]
[313934534,1707838262698,-199.36,0.00029041,2]
[313934535,1707838262711,-183.09139059,0.00029041,2]
[313934536,1707838262725,-500.0,0.00029041,2]
[313934537,1707838262740,-539.28,0.00029041,2]
[313934538,1707838262755,-500.0,0.00029041,2]
[313934539,1707838262771,-500.0,0.00029041,2]
[313934540,1707838262787,-500.0,0.00029041,2]
[313934541,1707838262802,-167.94,0.00029041,2]
[313934542,1707838262816,-500.0,0.00029041,2]
[313934543,1707838262831,-500.0,0.00029041,2]
[313934544,1707838262845,-500.0,0.00029041,2]
[313934545,1707838262860,-500.0,0.00029041,2]
[313934546,1707838262875,-500.0,0.00029041,2]
[313934547,1707838262890,-2958.35,0.00029041,2]
[313934548,1707838262904,-204.09906693,0.00029041,2]
[313934549,1707838262918,-807.59,0.00029041,2]
[313934550,1707838262934,-500.0,0.00029041,2]
[313934551,1707838262948,-563.21,0.00029041,2]
[313934552,1707838262963,-586.7130536,0.00029041,2]
[313934553,1707838262978,-500.0,0.00029041,2]
[313934554,1707838262992,-375.3,0.00029041,2]
[313934555,1707838263007,-500.0,0.00029041,2]
[313934556,1707838263022,-432.94,0.00029041,2]
[313934557,1707838263038,-500.0,0.00029041,2]
[313934558,1707838263051,-500.0,0.00029041,2]
[313934559,1707838263060,-500.0,0.00029041,2]
[313934560,1707838263198,-342.96,0.00029041,2]
[313934561,1707838263214,-500.0,0.00029041,2]
[313934562,1707838263227,-500.0,0.00029041,2]
[313934563,1707838263236,-150.24,0.00029041,2]
[313934564,1707838263245,-500.0,0.00029041,2]
[313934565,1707838263254,-500.0,0.00029041,2]
[313934566,1707838263263,-500.0,0.00029041,2]
[313934567,1707838263271,-500.0,0.00029041,2]
[313934568,1707838263280,-500.0,0.00029041,2]
[313934569,1707838263289,-172.12,0.00029041,2]
[313934570,1707838263297,-500.0,0.00029041,2]
[313934571,1707838263306,-500.0,0.00029041,2]
[313934572,1707838263315,-174.74,0.00029041,2]
[313934573,1707838263324,-222.59,0.00029041,2]
[313934574,1707838263338,-500.0,0.00029041,2]
[313934575,1707838263347,-500.0,0.00029041,2]
[313934576,1707838263356,-500.0,0.00029041,2]
[313934577,1707838263364,-500.0,0.00029041,2]
[313934578,1707838263374,-500.0,0.00029041,2]
[313934579,1707838263383,-646.33,0.00029041,2]
[313934580,1707838263392,-500.0,0.00029041,2]
[313934581,1707838263401,-500.0,0.00029041,2]
[313934582,1707838263411,-500.0,0.00029041,2]
[313934583,1707838263420,-500.0,0.00029041,2]
[313934584,1707838263432,-500.0,0.00029041,2]
[313934585,1707838263441,-370.33444536,0.00029041,2]
[313934586,1707838263450,-500.0,0.00029041,2]
[313934587,1707838263459,-500.0,0.00029041,2]
[313934588,1707838263468,-585.5,0.00029041,2]
[313934589,1707838263478,-500.0,0.00029041,2]
[313934590,1707838263487,-500.0,0.00029041,2]
[313934591,1707838263497,-158.42,0.00029041,2]
[313934592,1707838263506,-500.0,0.00029041,2]
[313934593,1707838263515,-519.57855862,0.00029041,2]
[313934594,1707838263524,-500.0,0.00029041,2]
[313934595,1707838263534,-743.67,0.00029041,2]
[313934596,1707838263543,-500.0,0.00029041,2]
[313934597,1707838263552,-500.0,0.00029041,2]
[313934598,1707838263562,-331.63715458,0.00029041,2]
[313934599,1707838263571,-500.0,0.00029041,2]
[313934600,1707838263580,-500.0,0.00029041,2]
[313934601,1707838263589,-500.0,0.00029041,2]
[313934602,1707838263599,-500.0,0.00029041,2]
[313934603,1707838263608,-500.0,0.00029041,2]
[313934604,1707838263618,-265.99803383,0.00029041,2]
[313934605,1707838263627,-500.0,0.00029041,2]
[313934606,1707838263637,-199.99,0.00029041,2]
[313934607,1707838263646,-500.0,0.00029041,2]
[313934608,1707838263655,-500.0,0.00029041,2]
[313934609,1707838263665,-1059.03,0.00029041,2]
[313934610,1707838263676,-500.0,0.00029041,2]
[313934611,1707838263685,-500.0,0.00029041,2]
[313934612,1707838263694,-500.0,0.00029041,2]
[313934613,1707838263704,-500.0,0.00029041,2]
[313934614,1707838263714,-500.0,0.00029041,2]
[313934615,1707838263723,-500.0,0.00029041,2]
[313934616,1707838263733,-554.5,0.00029041,2]
[313934617,1707838263742,-298.18,0.00029041,2]
[313934618,1707838263751,-571.36,0.00029041,2]
[313934619,1707838263761,-500.0,0.00029041,2]
[313934620,1707838263771,-500.0,0.00029041,2]
[313934621,1707838263780,-157.71,0.00029041,2]
[313934622,1707838263789,-558.26,0.00029041,2]
[313934623,1707838263798,-500.0,0.00029041,2]
[313934624,1707838263807,-500.0,0.00029041,2]
[313934625,1707838263816,-161.71,0.00029041,2]
[313934626,1707838263825,-500.0,0.00029041,2]
[313934627,1707838263833,-628.27,0.00029041,2]
[313934628,1707838263842,-410.53,0.00029041,2]
[313934629,1707838263852,-500.0,0.00029041,2]
[313934630,1707838263861,-500.0,0.00029041,2]
[313934631,1707838263870,-500.0,0.00029041,2]
[313934632,1707838263879,-500.0,0.00029041,2]
[313934633,1707838263888,-245.13,0.00029041,2]
[313934634,1707838263898,-500.0,0.00029041,2]
[313934635,1707838263907,-500.0,0.00029041,2]
[313934636,1707838263916,-500.0,0.00029041,2]
[313934637,1707838263926,-500.0,0.00029041,2]
[313934638,1707838263935,-332.82,0.00029041,2]
[313934639,1707838263944,-500.0,0.00029041,2]
[313934640,1707838263953,-294.62,0.00029041,2]
[313934641,1707838263963,-500.0,0.00029041,2]
[313934642,1707838263972,-530.21,0.00029041,2]
[313934643,1707838263981,-500.0,0.00029041,2]
[313934644,1707838263991,-500.0,0.00029041,2]
[313934645,1707838264000,-500.0,0.00029041,2]
[313934646,1707838264009,-500.0,0.00029041,2]
[313934647,1707838264019,-500.0,0.00029041,2]
[313934648,1707838264028,-488.24,0.00029069,2]
[313934649,1707838264037,-6060.70441738,0.0002913,2]
[313934650,1707838264046,-1349.02246101,0.00029152,2]
[313934651,1707838264055,-20861.85130358,0.00029187,2]
[313934652,1707838264065,-150.0,0.000292,2]
[313934653,1707838264074,-478.22,0.00029257,2]
[313934654,1707838264084,-1112.0,0.00029281,2]
[313934655,1707838264093,-361.21,0.00029315,2]
[313934656,1707838264102,-500.0,0.00029315,2]
[313934657,1707838264111,-500.0,0.00029315,2]
[313934658,1707838264121,-500.0,0.00029315,2]
[313934659,1707838264130,-500.0,0.00029315,2]
[313934660,1707838264139,-500.0,0.00029315,2]
[313934661,1707838264149,-500.0,0.00029315,2]
[313934662,1707838264158,-524.63997923,0.00029315,2]
[313934663,1707838264167,-500.0,0.00029315,2]
[313934664,1707838264179,-500.0,0.00029315,2]
[313934665,1707838264188,-415.81,0.00029315,2]
[313934666,1707838264197,-500.0,0.00029315,2]
[313934667,1707838264206,-191.69,0.00029315,2]
[313934668,1707838264216,-374.56,0.00029315,2]
[313934669,1707838264225,-500.0,0.00029315,2]
[313934670,1707838264235,-252.25,0.00029315,2]
[313934671,1707838264244,-198.14,0.00029315,2]
[313934672,1707838264253,-500.0,0.00029315,2]
[313934673,1707838264262,-500.0,0.00029315,2]
[313934674,1707838264272,-500.0,0.00029315,2]
[313934675,1707838264281,-448.87,0.00029315,2]
[313934676,1707838264290,-500.0,0.00029315,2]
[313934677,1707838264300,-500.0,0.00029315,2]
[313934678,1707838264309,-474.77,0.00029315,2]
[313934679,1707838264319,-500.0,0.00029315,2]
[313934680,1707838264328,-500.0,0.00029315,2]
[313934681,1707838264337,-500.0,0.00029315,2]
[313934682,1707838264349,-226.33,0.00029315,2]
[313934683,1707838264358,-500.0,0.00029315,2]
[313934684,1707838264368,-161.52,0.00029315,2]
[313934685,1707838264377,-355.98248981,0.00029315,2]
[313934686,1707838264387,-500.0,0.00029315,2]
[313934687,1707838264396,-1934.6,0.00029315,2]
[313934688,1707838264405,-214.67393801,0.00029315,2]
[313934689,1707838264414,-500.0,0.00029315,2]
[313934690,1707838264424,-500.0,0.00029315,2]
[313934691,1707838264435,-500.0,0.00029315,2]
[313934692,1707838264445,-500.0,0.00029315,2]
[313934693,1707838264454,-500.0,0.00029315,2]
[313934694,1707838264462,-182.17588378,0.00029315,2]
[313934695,1707838264471,-598.93,0.00029315,2]
[313934696,1707838264480,-424.44318239,0.00029315,2]
[313934697,1707838264490,-500.0,0.00029315,2]
[313934698,1707838264499,-500.0,0.00029315,2]
[313934699,1707838264508,-453.13,0.00029315,2]
[313934700,1707838264518,-226.7,0.00029315,2]
[313934701,1707838264527,-500.0,0.00029315,2]
[313934702,1707838264537,-158.19,0.00029315,2]
[313934703,1707838264546,-275.34,0.00029315,2]
[313934704,1707838264555,-500.0,0.00029315,2]
[313934705,1707838264565,-421.51,0.00029315,2]
[313934706,1707838264574,-363.97,0.00029315,2]
[313934707,1707838264583,-625.54,0.00029315,2]
[313934708,1707838264593,-411.06,0.00029315,2]
[313934709,1707838264601,-341.31,0.00029315,2]
[313934710,1707838264610,-452.04,0.00029315,2]
[313934711,1707838264620,-363.69,0.00029315,2]
[313934712,1707838264629,-221.21,0.00029315,2]
[313934713,1707838264638,-172.76,0.00029315,2]
[313934714,1707838264647,-500.0,0.00029315,2]
[313934715,1707838264656,-500.0,0.00029315,2]
[313934716,1707838264665,-435.98,0.00029315,2]
[313934717,1707838264675,-295.56,0.00029315,2]
[313934718,1707838264684,-500.0,0.00029315,2]
[313934719,1707838264694,-920.05,0.00029315,2]
[313934720,1707838264703,-500.0,0.00029315,2]
[313934721,1707838264713,-500.0,0.00029315,2]
[313934722,1707838264722,-500.0,0.00029315,2]
[313934723,1707838264731,-500.0,0.00029315,2]
[313934724,1707838264740,-500.0,0.00029315,2]
[313934725,1707838264750,-1567.32,0.00029315,2]
[313934726,1707838264759,-500.0,0.00029315,2]
[313934727,1707838264769,-500.0,0.00029315,2]
[313934728,1707838264779,-500.0,0.00029315,2]
[313934729,1707838264787,-500.0,0.00029315,2]
[313934730,1707838264796,-500.0,0.00029315,2]
[313934731,1707838264806,-500.0,0.00029315,2]
[313934732,1707838264815,-500.0,0.00029315,2]
[313934733,1707838264824,-500.0,0.00029315,2]
[313934734,1707838264833,-500.0,0.00029315,2]
[313934735,1707838264842,-500.0,0.00029315,2]
[313934736,1707838264851,-500.0,0.00029315,2]
[313934737,1707838264860,-500.0,0.00029315,2]
[313934738,1707838264869,-500.0,0.00029315,2]
[313934739,1707838264878,-500.0,0.00029315,2]
[313934740,1707838264887,-500.0,0.00029315,2]
[313934741,1707838264897,-500.0,0.00029315,2]
[313934742,1707838264906,-500.0,0.00029315,2]
[313934743,1707838264915,-500.0,0.00029315,2]
[313934744,1707838264925,-500.0,0.00029315,2]
[313934745,1707838264935,-500.0,0.00029315,2]
[313934746,1707838264944,-500.0,0.00029315,2]
[313934747,1707838264953,-500.0,0.00029315,2]
[313934748,1707838264963,-506.78,0.00029315,2]
[313934749,1707838264972,-500.0,0.00029315,2]
[313934750,1707838264981,-500.0,0.00029315,2]
[313934751,1707838264991,-500.0,0.00029315,2]
[313934752,1707838265102,-529.52,0.00029315,2]
[313934753,1707838265115,-500.0,0.00029315,2]
[313934754,1707838265125,-500.0,0.00029315,2]
[313934755,1707838265134,-500.0,0.00029315,2]
[313934756,1707838265144,-500.0,0.00029315,2]
[313934757,1707838265154,-500.0,0.00029315,2]
[313934758,1707838265163,-500.0,0.00029315,2]
[313934759,1707838265173,-500.0,0.00029315,2]
[313934760,1707838265184,-500.0,0.00029315,2]
[313934761,1707838265194,-589.72,0.00029315,2]
[313934762,1707838265203,-649.36,0.00029315,2]
[313934763,1707838265213,-278.0,0.00029315,2]
[313934764,1707838265222,-500.0,0.00029315,2]
[313934765,1707838265232,-500.0,0.00029315,2]
[313934766,1707838265242,-500.0,0.00029315,2]
[313934767,1707838265251,-500.0,0.00029315,2]
[313934768,1707838265261,-500.0,0.00029315,2]
[313934769,1707838265270,-500.0,0.00029315,2]
[313934770,1707838265280,-500.0,0.00029315,2]
[313934771,1707838265290,-500.60616609,0.00029315,2]
[313934772,1707838265300,-500.0,0.00029315,2]
[313934773,1707838265309,-500.0,0.00029315,2]
[313934774,1707838265318,-500.0,0.00029315,2]
[313934775,1707838265328,-596.12,0.00029315,2]
[313934776,1707838265337,-500.0,0.00029315,2]
[313934777,1707838265350,-500.0,0.00029315,2]
[313934778,1707838265360,-500.0,0.00029315,2]
[313934779,1707838265370,-561.06904488,0.00029315,2]
[313934780,1707838265380,-781.4,0.00029315,2]
[313934781,1707838265389,-500.0,0.00029315,2]
[313934782,1707838265398,-539.28,0.00029315,2]
[313934783,1707838265407,-500.0,0.00029315,2]
[313934784,1707838265417,-500.0,0.00029315,2]
[313934785,1707838265428,-500.0,0.00029315,2]
[313934786,1707838265438,-500.0,0.00029315,2]
[313934787,1707838265447,-500.0,0.00029315,2]
[313934788,1707838265458,-2958.35,0.00029315,2]
[313934789,1707838265468,-807.59,0.00029315,2]
[313934790,1707838265477,-500.0,0.00029315,2]
[313934791,1707838265487,-500.0,0.00029315,2]
[313934792,1707838265497,-500.0,0.00029315,2]
[313934793,1707838265507,-500.0,0.00029315,2]
[313934794,1707838265518,-500.0,0.00029315,2]
[313934795,1707838265528,-500.0,0.00029315,2]
[313934796,1707838265537,-500.0,0.00029315,2]
[313934797,1707838265547,-500.0,0.00029315,2]
[313934798,1707838265556,-639.85,0.00029315,2]
[313934799,1707838265566,-500.0,0.00029315,2]
[313934800,1707838265576,-295.2,0.00029315,2]
[313934801,1707838265585,-500.0,0.00029315,2]
[313934802,1707838265595,-500.0,0.00029315,2]
[313934803,1707838265605,-213.14,0.00029315,2]
[313934804,1707838265615,-500.0,0.00029315,2]
[313934805,1707838265625,-500.0,0.00029315,2]
[313934806,1707838265634,-500.0,0.00029315,2]
[313934807,1707838265644,-646.33,0.00029315,2]
[313934808,1707838265653,-500.0,0.00029315,2]
[313934809,1707838265663,-500.0,0.00029315,2]
[313934810,1707838265673,-570.73,0.00029315,2]
[313934811,1707838265685,-500.0,0.00029315,2]
[313934812,1707838265695,-500.0,0.00029315,2]
[313934813,1707838265705,-500.0,0.00029315,2]
[313934814,1707838265715,-585.5,0.00029315,2]
[313934815,1707838265725,-500.0,0.00029315,2]
[313934816,1707838265736,-500.0,0.00029315,2]
[313934817,1707838265746,-500.0,0.00029315,2]
[313934818,1707838265756,-743.67,0.00029315,2]
[313934819,1707838265765,-500.0,0.00029315,2]
[313934820,1707838265775,-500.0,0.00029315,2]
[313934821,1707838265785,-500.0,0.00029315,2]
[313934822,1707838265794,-500.0,0.00029315,2]
[313934823,1707838265804,-500.0,0.00029315,2]
[313934824,1707838265813,-500.0,0.00029315,2]
[313934825,1707838265822,-301.40943061,0.00029315,2]
[313934826,1707838265832,-500.0,0.00029315,2]
[313934827,1707838265842,-500.0,0.00029315,2]
[313934828,1707838265851,-1059.03,0.00029315,2]
[313934829,1707838265861,-500.0,0.00029315,2]
[313934830,1707838265870,-500.0,0.00029315,2]
[313934831,1707838265880,-500.0,0.00029315,2]
[313934832,1707838265889,-500.0,0.00029315,2]
[313934833,1707838265899,-500.0,0.00029315,2]
[313934834,1707838265908,-500.0,0.00029315,2]
[313934835,1707838265918,-571.36,0.00029315,2]
[313934836,1707838265929,-500.0,0.00029315,2]
[313934837,1707838265938,-558.26,0.00029315,2]
[313934838,1707838265948,-500.0,0.00029315,2]
[313934839,1707838265958,-500.0,0.00029315,2]
[313934840,1707838265968,-500.0,0.00029315,2]
[313934841,1707838265977,-500.0,0.00029315,2]
[313934842,1707838265987,-330.57654559,0.00029315,2]
[313934843,1707838265996,-500.0,0.00029315,2]
[313934844,1707838266006,-500.0,0.00029315,2]
[313934845,1707838266016,-500.0,0.00029315,2]
[313934846,1707838266026,-500.0,0.00029315,2]
[313934847,1707838266036,-500.0,0.00029315,2]
[313934848,1707838266045,-500.0,0.00029315,2]
[313934849,1707838266055,-1349.02246101,0.00029401,2]
[313934850,1707838266065,-174.67,0.00029499,2]
[313934851,1707838266074,-2828.77995233,0.00029514,4]
[313934852,1707838266084,-500.0,0.00029589,2]
[313934853,1707838266093,-500.0,0.00029589,2]
[313934854,1707838266102,-500.0,0.00029589,2]
[313934855,1707838266112,-416.1,0.00029589,2]
[313934856,1707838266121,-500.0,0.00029589,2]
[313934857,1707838266130,-512.28,0.00029589,2]
[313934858,1707838266140,-500.0,0.00029589,2]
[313934859,1707838266150,-500.0,0.00029589,2]
[313934860,1707838266159,-500.0,0.00029589,2]
[313934861,1707838266169,-500.0,0.00029589,2]
[313934862,1707838266181,-638.66,0.00029589,2]
[313934863,1707838266190,-500.0,0.00029589,2]
[313934864,1707838266200,-323.50340506,0.00029589,2]
[313934865,1707838266209,-500.0,0.00029589,2]
[313934866,1707838266218,-159.11,0.00029589,2]
[313934867,1707838266239,-500.0,0.00029589,2]
[313934868,1707838266250,-500.0,0.00029589,2]
[313934869,1707838266261,-1934.6,0.00029589,2]
[313934870,1707838266272,-500.0,0.00029589,2]
[313934871,1707838266283,-500.0,0.00029589,2]
[313934872,1707838266293,-500.0,0.00029589,2]
[313934873,1707838266304,-337.66314601,0.00029589,2]
[313934874,1707838266314,-376.94,0.00029589,2]
[313934875,1707838266325,-500.0,0.00029589,2]
[313934876,1707838266335,-502.74,0.00029589,2]
[313934877,1707838266349,-500.0,0.00029589,2]
[313934878,1707838266360,-500.0,0.00029589,2]
[313934879,1707838266371,-500.0,0.00029589,2]
[313934880,1707838266381,-920.05,0.00029589,2]
[313934881,1707838266391,-500.0,0.00029589,2]
[313934882,1707838266401,-500.0,0.00029589,2]
[313934883,1707838266411,-424.06159981,0.00029589,2]
[313934884,1707838266422,-500.0,0.00029589,2]
[313934885,1707838266434,-1567.32,0.00029589,2]
[313934886,1707838266444,-508.74816791,0.00029589,2]
[313934887,1707838266454,-500.0,0.00029589,2]
[313934888,1707838266464,-500.0,0.00029589,2]
[313934889,1707838266474,-500.0,0.00029589,2]
[313934890,1707838266485,-500.0,0.00029589,2]
[313934891,1707838266496,-500.0,0.00029589,2]
[313934892,1707838266506,-500.0,0.00029589,2]
[313934893,1707838266517,-500.0,0.00029589,2]
[313934894,1707838266528,-500.0,0.00029589,2]
[313934895,1707838266538,-500.0,0.00029589,2]
[313934896,1707838266549,-500.0,0.00029589,2]
[313934897,1707838266559,-500.0,0.00029589,2]
[313934898,1707838266569,-500.0,0.00029589,2]
[313934899,1707838266580,-500.0,0.00029589,2]
[313934900,1707838266591,-500.0,0.00029589,2]
[313934901,1707838266601,-500.0,0.00029589,2]
[313934902,1707838266612,-500.0,0.00029589,2]
[313934903,1707838266622,-500.0,0.00029589,2]
[313934904,1707838266632,-500.0,0.00029589,2]
[313934905,1707838266642,-500.0,0.00029589,2]
[313934906,1707838266652,-504.2819593,0.00029589,2]
[313934907,1707838266663,-631.79,0.00029589,2]
[313934908,1707838266673,-500.0,0.00029589,2]
[313934909,1707838266685,-506.78,0.00029589,2]
[313934910,1707838266696,-500.0,0.00029589,2]
[313934911,1707838266706,-500.0,0.00029589,2]
[313934912,1707838266717,-500.0,0.00029589,2]
[313934913,1707838266728,-529.52,0.00029589,2]
[313934914,1707838266738,-500.0,0.00029589,2]
[313934915,1707838266749,-500.0,0.00029589,2]
[313934916,1707838266761,-500.0,0.00029589,2]
[313934917,1707838266772,-500.0,0.00029589,2]
[313934918,1707838266783,-500.0,0.00029589,2]
[313934919,1707838266794,-500.0,0.00029589,2]
[313934920,1707838266805,-500.0,0.00029589,2]
[313934921,1707838266816,-500.0,0.00029589,2]
[313934922,1707838266827,-500.0,0.00029589,2]
[313934923,1707838266838,-500.0,0.00029589,2]
[313934924,1707838266850,-500.0,0.00029589,2]
[313934925,1707838266862,-500.0,0.00029589,2]
[313934926,1707838266873,-500.0,0.00029589,2]
[313934927,1707838266884,-492.61,0.00029589,2]
[313934928,1707838266895,-500.0,0.00029589,2]
[313934929,1707838267050,-500.0,0.00029589,2]
[313934930,1707838267060,-500.0,0.00029589,2]
[313934931,1707838267070,-500.0,0.00029589,2]
[313934932,1707838267079,-596.12,0.00029589,2]
[313934933,1707838267089,-500.0,0.00029589,2]
[313934934,1707838267099,-500.0,0.00029589,2]
[313934935,1707838267108,-500.0,0.00029589,2]
[313934936,1707838267119,-781.4,0.00029589,2]
[313934937,1707838267128,-500.0,0.00029589,2]
[313934938,1707838267138,-539.28,0.00029589,2]
[313934939,1707838267148,-500.0,0.00029589,2]
[313934940,1707838267158,-500.0,0.00029589,2]
[313934941,1707838267169,-500.0,0.00029589,2]
[313934942,1707838267186,-500.0,0.00029589,2]
[313934943,1707838267195,-500.0,0.00029589,2]
[313934944,1707838267205,-2958.35,0.00029589,2]
[313934945,1707838267215,-807.59,0.00029589,2]
[313934946,1707838267225,-500.0,0.00029589,2]
[313934947,1707838267235,-500.0,0.00029589,2]
[313934948,1707838267245,-500.0,0.00029589,2]
[313934949,1707838267254,-500.0,0.00029589,2]
[313934950,1707838267264,-500.0,0.00029589,2]
[313934951,1707838267275,-500.0,0.00029589,2]
[313934952,1707838267284,-500.0,0.00029589,2]
[313934953,1707838267293,-500.0,0.00029589,2]
[313934954,1707838267303,-500.0,0.00029589,2]
[313934955,1707838267313,-500.0,0.00029589,2]
[313934956,1707838267323,-613.72,0.00029589,2]
[313934957,1707838267335,-500.0,0.00029589,2]
[313934958,1707838267345,-534.76,0.00029589,2]
[313934959,1707838267356,-492.84010465,0.00029589,2]
[313934960,1707838267366,-646.33,0.00029589,2]
[313934961,1707838267375,-500.0,0.00029589,2]
[313934962,1707838267384,-500.0,0.00029589,2]
[313934963,1707838267394,-500.0,0.00029589,2]
[313934964,1707838267403,-500.0,0.00029589,2]
[313934965,1707838267413,-500.0,0.00029589,2]
[313934966,1707838267423,-585.5,0.00029589,2]
[313934967,1707838267437,-500.0,0.00029589,2]
[313934968,1707838267447,-500.0,0.00029589,2]
[313934969,1707838267459,-500.0,0.00029589,2]
[313934970,1707838267469,-743.67,0.00029589,2]
[313934971,1707838267479,-500.0,0.00029589,2]
[313934972,1707838267489,-500.0,0.00029589,2]
[313934973,1707838267499,-500.0,0.00029589,2]
[313934974,1707838267509,-500.0,0.00029589,2]
[313934975,1707838267520,-500.0,0.00029589,2]